Cogmind - Beta 14 @@@ ROGUE MODE // 2024.09.20 @ 20:43:34 Player: Briarspitter Result: Destroyed by S-10 Pest with Light Assault Rifle Performance ------------- Evolutions (2) 1000 Regions Visited (5) 1000 Robots Destroyed (25) 125 Value Destroyed (809) 809 Prototype IDs (24) 480 Alien Tech Used (0) 0 Bonus (362) 362 TOTAL SCORE: 3776 Bonus ------- Follower Combat Kills 62 Aligned with FarCom 300 Cogmind --------- Core Integrity 0/550 Matter 222/300 Energy 41/100 System Corruption 0% Temperature Cool (23) Movement Core (700) Ox13 Location -8/Materials Parts ------- > --- POWER (1) -------- (None) > --- PROPULSION (3) --- (None) > --- UTILITY (4) ------ High-capacity Storage Unit Advanced Targeting Computer > --- WEAPON (3) ------- (None) > --- INVENTORY (20) --- Experimental Sensor Array Improved Terrain Scan Processor Energy Filter Energy Filter ECM Suite ECM Suite System Restoration Module System Restoration Module PSU Rigger Peak State ------------ > --- POWER ------------ Light Nuclear Core > --- PROPULSION ------- Improved Aluminum Leg Carbon-fiber Leg Armored Wheel > --- UTILITY ---------- High-capacity Storage Unit Sensor Array Hardened Light Armor Plating Hacking Suite > --- WEAPON ----------- Beam Rifle Light Assault Rifle Heavy Assault Rifle > --- INVENTORY -------- Improved Ion Engine Aluminum Leg Aluminum Leg Carbon-fiber Leg Experimental Sensor Array Advanced Targeting Computer Energy Filter Energy Filter ECM Suite ECM Suite System Restoration Module System Restoration Module System Restoration Module PSU Rigger EM Pulse Cannon Rocket Launcher Greatsword Greatsword [Rating: 29] Favorites ----------- Power Light Nuclear Core Engine Ion Engine Power Core Light Nuclear Core Propulsion Aluminum Leg Treads Armored Treads Leg Aluminum Leg Wheel Armored Wheel Utility Sensor Array Device Sensor Array Storage Small Storage Unit Processor Targeting Computer Hackware Hacking Suite Protection Hardened Light Armor Plating Weapon Small Laser Energy Gun Small Laser Energy Cannon EM Pulse Cannon Ballistic Gun Light Assault Rifle Launcher Rocket Launcher Slashing Weapon Greatsword Build | -11 -10 -10 -10 -9 -8 ------- Run | Yrd Mat Min Exi Min Mat Slots Evolved 4 | . . . . . 4 Power . | . . . . . . Propulsion 1 | . . . . . 1 Utility 2 | . . . . . 2 Weapon 1 | . . . . . 1 Parts Attached 39 | 8 1 4 1 3 22 Power 4 | 1 . . 1 . 2 Engine 2 | 1 . . . . 1 Core 2 | . . . 1 . 1 Reactor . | . . . . . . Propulsion 11 | 2 1 . . . 8 Treads 1 | . . . . . 1 Leg 9 | 2 1 . . . 6 Wheel 1 | . . . . . 1 Hover . | . . . . . . Flight . | . . . . . . Utility 8 | 2 . 1 . . 5 Device 2 | 1 . 1 . . . Storage 2 | 1 . . . . 1 Processor 2 | . . . . . 2 Hackware 1 | . . . . . 1 Protection 1 | . . . . . 1 Artifact . | . . . . . . Weapon 16 | 3 . 3 . 3 7 Energy Gun 7 | 3 . 2 . 1 1 Energy Cannon 1 | . . . . . 1 Ballistic Gun 3 | . . . . 1 2 Ballistic Cannon . | . . . . . . Launcher 3 | . . 1 . 1 1 Special Weapon . | . . . . . . Impact Weapon . | . . . . . . Slashing Weapon 2 | . . . . . 2 Piercing Weapon . | . . . . . . Special Melee Weapon . | . . . . . . Unidentified Prototypes . | . . . . . . Parts Lost 18 | . 1 . . . 17 Power 2 | . . . . . 2 Propulsion 6 | . . . . . 6 Utility 4 | . 1 . . . 3 Weapon 6 | . . . . . 6 Highest Loss Streak 17 | . 1 . . . 17 To Critical Strikes 2 | . . . . . 2 Average Slot Usage (%) 98 | . 98 98 100 100 96 Engine 3 | . 14 14 . . . Core 8 | . . . 14 14 8 Leg 24 | . 28 28 28 28 17 Wheel 3 | . . . . . 8 Device 11 | . 12 12 14 14 8 Storage 12 | . 14 14 14 14 9 Hackware 2 | . . . . . 5 Protection 3 | . . . . . 8 Energy Gun 19 | . 28 27 28 21 8 Ballistic Gun 6 | . . . . 1 16 Peak Build Rating 29 | 7 7 9 10 12 29 Average Rating 14 | 4 6 7 9 10 24 On Entrance 7 | . 7 7 8 10 11 Naked Turns . | . . . . . . Heaviest Build 58 | 15 15 16 13 16 58 Greatest Support 28 | 20 20 20 20 20 28 Greatest Overweight (x) 13 | . . . . . 13 Average Overweight (x) . | . . . . . 1 Largest Inventory Capacity 20 | 8 8 8 8 8 20 Average Capacity 12 | 6 8 8 8 8 19 Most Carried 20 | 5 8 8 8 8 20 Average Carried 11 | 1 5 7 7 7 17 Final Capacity 20 | 8 8 8 8 8 20 Final Carried 9 | 2 8 8 8 8 9 Class Distribution -------------------- 48% | Scavenger-Skirmisher 29% | Mutant 15% | Scavenger-Mutant 5% | Skirmisher Dominant Class ---------------- Mutant | -10/Materials Mutant | -10/Mines Scavenger-Mutant | -10/Exiles Scavenger-Skirmisher | -9/Mines Scavenger-Skirmisher | -8/Materials Resources | -11 -10 -10 -10 -9 -8 ----------- Run | Yrd Mat Min Exi Min Mat Matter Collected 682 | 177 100 61 . 128 216 Remotely . | . . . . . . Salvage Created 743 | 8 116 99 . 54 466 Parts 49 | 4 8 4 . 7 26 Haulers Intercepted . | . . . . . . Recyclers Shooed 1 | . 1 . . . . Parts Field Recycled . | . . . . . . Retrieved Matter . | . . . . . . Parts Self-Destructed . | . . . . . . Prevented . | . . . . . . Kills | -11 -10 -10 -10 -9 -8 ------- Run | Yrd Mat Min Exi Min Mat Combat Hostiles Destroyed 23 | . 2 4 . 6 11 Guns 15 | . 2 1 . 1 11 AOE 7 | . . 2 . 5 . Classes Destroyed 6 | 1 2 1 . 1 1 Tunneler 1 | 1 . . . . . Watcher 1 | . 1 . . . . Swarmer 8 | . . 2 . 4 2 Grunt 10 | . 2 2 . . 6 Sentry 3 | . . . . 2 1 Specialist 2 | . . . . . 2 Best Kill Streak 4 | 1 1 2 . 4 3 Combat Bots Only 4 | . 1 2 . 4 3 Max Kills in Single Turn 4 | 1 1 2 . 4 1 Gunslinging . | . . . . . . Exploded 3 | . . 2 . 3 . Melee . | . . . . . . Uniques/NPCs Destroyed . | . . . . . . Combat | -11 -10 -10 -10 -9 -8 -------- Run | Yrd Mat Min Exi Min Mat Hostile Shots Fired 296 | . 26 15 . 19 236 Missed 91 | . 6 3 . 7 75 Damage Taken 3093 | . 234 151 . 196 2512 Core 688 | . 48 33 . 52 555 Absorbed by Shields . | . . . . . . Core Remaining (%) 73 | 100 . . . 46 . Volleys Fired 61 | 1 10 8 . 8 34 Largest 3 | 2 2 2 . 2 3 Hottest 142 | 90 100 100 . 73 142 Shots Fired 149 | 2 20 15 . 16 96 Gun 135 | 2 20 14 . 8 91 Cannon 1 | . . . . . 1 Launcher 13 | . . 1 . 8 4 Special . | . . . . . . Kinetic 57 | . . . . . 57 Thermal 78 | 2 20 14 . 8 34 Explosive 13 | . . 1 . 8 4 Electromagnetic 1 | . . . . . 1 Robot Hit Streak 10 | 2 9 6 . 10 8 Robot Miss Streak 4 | . 4 1 . 2 4 Penetration Max . | . . . . . . Secondary Targets 1 | . 1 . . . . Max Gunslinging Chain 1 | . 1 . . . . Shots Hit Robots 92 | 2 12 12 . 11 55 Core Hits 59 | 2 6 6 . 11 34 Critical Kills . | . . . . . . Critical Parts Destroyed 1 | . . . . . 1 Critical Strikes 4 | . 1 1 . . 2 Burn 3 | . 1 1 . . 1 Destroy 1 | . . . . . 1 Melee Attacks 2 | . . . . . 2 Impact . | . . . . . . Slashing 2 | . . . . . 2 Piercing . | . . . . . . Sneak Attacks . | . . . . . . Combat Hostiles . | . . . . . . Follow-up Attacks . | . . . . . . Damage Inflicted 1884 | 29 162 255 . 456 982 Guns 973 | 24 162 163 . 51 573 Cannons 21 | . . . . . 21 Explosions 827 | . . 92 . 405 330 Melee 58 | . . . . . 58 Ramming 5 | 5 . . . . . Kinetic 340 | . . . . . 340 Thermal 633 | 24 162 163 . 51 233 Explosive 827 | . . 92 . 405 330 Electromagnetic 21 | . . . . . 21 Impact . | . . . . . . Slashing 58 | . . . . . 58 Piercing . | . . . . . . Highest Corruption . | . . . . . . Average Corruption . | . . . . . . Corruption Purged . | . . . . . . Corruption Blocked . | . . . . . . Overload Shots . | . . . . . . Overflow Damage 2 | . . . . 2 . Projectiles . | . . . . . . Explosions 2 | . . . . 2 . Melee . | . . . . . . Knockbacks . | . . . . . . Impact . | . . . . . . Kinetic . | . . . . . . Secondary . | . . . . . . Self-Inflicted Damage 124 | . . . . 42 82 Shots 7 | . . . . 4 3 Rammed . | . . . . . . Targets Rammed 1 | 1 . . . . . Kicked 1 | 1 . . . . . Crushed . | . . . . . . Highest Temperature 364 | 30 275 351 . 135 364 Average Temperature 118 | 18 157 185 . 53 105 Received Heat Transfer 852 | . 126 78 . 45 603 Effects 3 | . 2 . . . 1 Energy Bleed 2 | . 1 . . . 1 Interference 1 | . 1 . . . . Siege Activations . | . . . . . . Robots Corrupted . | . . . . . . Combat Hostiles . | . . . . . . Parts Fried . | . . . . . . Impact Corruptions . | . . . . . . Robots Melted 1 | . . 1 . . . Combat Hostiles 1 | . . 1 . . . Parts Melted 4 | . 1 3 . . . Heat Transferred 1930 | 62 555 555 . 125 633 Parts Sabotaged . | . . . . . . Parts Stolen . | . . . . . . Parts Stripped . | . . . . . . Power Chain Reactions . | . . . . . . Alert | -11 -10 -10 -10 -9 -8 ------- Run | Yrd Mat Min Exi Min Mat Peak Influence 287 | 5 86 104 . 287 197 Initial 111 | . 3 33 . . 111 Average 61 | 2 30 52 . 71 69 Maximum Alert Level 1 | . . . . 1 . Low Security (%) 96 | 100 100 100 . 85 100 Level 1 3 | . . . . 14 . Level 2 . | . . . . . . Level 3 . | . . . . . . Level 4 . | . . . . . . Level 5 . | . . . . . . High Security . | . . . . . . Max Security . | . . . . . . Squads Dispatched 9 | . 2 . . . 7 Investigation 2 | . 1 . . . 1 Extermination . | . . . . . . Reinforcement 4 | . 1 . . . 3 Assault . | . . . . . . Garrison 3 | . . . . . 3 Intercept . | . . . . . . Searches Triggered . | . . . . . . Construction Impeded . | . . . . . . Haulers Reinforced . | . . . . . . Active Scanning Responses . | . . . . . . Cargo Convoy Interrupts . | . . . . . . Stealth | -11 -10 -10 -10 -9 -8 --------- Run | Yrd Mat Min Exi Min Mat Distress Signals . | . . . . . . Communications Jammed . | . . . . . . Distress Signals . | . . . . . . Times Spotted 47 | . 6 4 . 9 28 Peak Tracking Total 10 | . 3 2 . 4 10 Tactical Retreats 3 | . . . . . 3 Traps | -11 -10 -10 -10 -9 -8 ------- Run | Yrd Mat Min Exi Min Mat Traps Triggered 1 | . 1 . . . . Indirectly . | . . . . . . Trap Hack Attempts . | . . . . . . Triggered . | . . . . . . Disarmed . | . . . . . . Reprogrammed . | . . . . . . Reused . | . . . . . . Traps Extracted . | . . . . . . Installed . | . . . . . . Triggered . | . . . . . . Machines | -11 -10 -10 -10 -9 -8 ---------- Run | Yrd Mat Min Exi Min Mat Machines Disabled 3 | . . . . 2 1 Max in Single Turn 2 | . . . . 2 . Machines Repaired . | . . . . . . Machines Dismantled . | . . . . . . Machines Sabotaged . | . . . . . . Overloaded Fab Kills . | . . . . . . Hacking | -11 -10 -10 -10 -9 -8 --------- Run | Yrd Mat Min Exi Min Mat Machines Accessed 10 | . 2 . 5 . 3 Terminals 4 | . 2 . . . 2 Fabricators . | . . . . . . Repair Stations . | . . . . . . Recycling Units . | . . . . . . Scanalyzers 1 | . . . . . 1 Garrison Access . | . . . . . . Total Hacks 22 | . 3 . 11 . 8 Successful 21 | . 3 . 11 . 7 Failed 1 | . . . . . 1 Catastrophic . | . . . . . . Database Lockouts . | . . . . . . Manual 4 | . . . 4 . . Terminals 7 | . 3 . . . 4 Fabricators . | . . . . . . Repair Stations . | . . . . . . Recycling Units . | . . . . . . Scanalyzers 4 | . . . . . 4 Garrison Access . | . . . . . . Terminal Hacks 18 | . 3 . 11 . 4 Record 11 | . 1 . 10 . . Emergency Access Points 2 | . 1 . . . 1 Alert Level 1 | . . . . . 1 Locate Traps 1 | . . . . . 1 Hauler Manifests 1 | . 1 . . . . Zone Layout 1 | . . . . . 1 Derelict Proto ID Bank 1 | . . . 1 . . Fabricator Hacks . | . . . . . . Repair Station Hacks . | . . . . . . Recycling Unit Hacks . | . . . . . . Scanalyzer 3 | . . . . . 3 Insert Component 1 | . . . . . 1 Analyze 2 | . . . . . 2 Garrison Access Hacks . | . . . . . . Unauthorized Hacks . | . . . . . . Terminals . | . . . . . . Fabricators . | . . . . . . Repair Stations . | . . . . . . Recycling Units . | . . . . . . Scanalyzers . | . . . . . . Garrison Access . | . . . . . . Data Cores Recovered . | . . . . . . Used . | . . . . . . Hacking Detections 2 | . 1 . . . 1 Full Trace Events 1 | . . . . . 1 Feedback Events . | . . . . . . Feedback Blocked . | . . . . . . Robot Schematics Acquired . | . . . . . . Robots Built . | . . . . . . Authchips . | . . . . . . Time . | . . . . . . Total Robot Build Rating . | . . . . . . Part Schematics Acquired . | . . . . . . Parts Built . | . . . . . . Authchips . | . . . . . . Time . | . . . . . . Total Part Build Rating . | . . . . . . Parts Repaired . | . . . . . . Time . | . . . . . . Parts Recycled . | . . . . . . Recycled Matter . | . . . . . . Retrieved Matter . | . . . . . . Retrieved Components . | . . . . . . Parts Scanalyzed 1 | . . . . . 1 Part Schematics Acquired . | . . . . . . Parts Damaged . | . . . . . . Bothacking | -11 -10 -10 -10 -9 -8 ------------ Run | Yrd Mat Min Exi Min Mat Used RIF Installer . | . . . . . . Robots Hacked . | . . . . . . Non-combat . | . . . . . . Combat . | . . . . . . Robot Hacks Applied . | . . . . . . Relay Couplers Released . | . . . . . . Fabnet Peak Effective % . | . . . . . . Robots Rewired . | . . . . . . Allies Hacked . | . . . . . . Hacks Repelled . | . . . . . . Allies | -11 -10 -10 -10 -9 -8 -------- Run | Yrd Mat Min Exi Min Mat Total Allies 4 | . . 4 . . . Largest Group 3 | . . 3 3 2 2 Highest-Rated Group 55 | . . 55 55 24 24 Highest-Rated Ally 31 | . . 31 31 16 16 Total Orders 22 | . . 5 . 7 10 STAY 6 | . . . . 2 4 ROAM 3 | . . 3 . . . FOLLOW 10 | . . 2 . 3 5 GUARD 2 | . . . . 2 . AID 1 | . . . . . 1 Ally Attacks 32 | . . 4 . 9 19 Total Damage 342 | . . 13 . 120 209 Kills 6 | . . 1 . 4 1 Allies Corrupted . | . . . . . . Allies Melted . | . . . . . . Intel | -11 -10 -10 -10 -9 -8 ------- Run | Yrd Mat Min Exi Min Mat Robot Analysis Total . | . . . . . . Derelict Logs Recovered 2 | . . 1 . 1 . Drone Launches . | . . . . . . Drone Recoveries . | . . . . . . Exploration | -11 -10 -10 -10 -9 -8 ------------- Run | Yrd Mat Min Exi Min Mat Turns Passed 4204 | 79 158 996 657 758 1556 Spaces Moved 2509 | 65 100 750 541 555 498 Core 31 | 30 . . . . 1 Treads . | . . . . . . Legs 2478 | 35 100 750 541 555 497 Wheels . | . . . . . . Hover . | . . . . . . Flight . | . . . . . . Fastest Speed 50 | 50 120 120 120 120 120 Average Speed 142 | 87 120 120 120 120 236 Slowest Speed 700 | 120 120 120 120 120 700 Overloaded Moves . | . . . . . . Propulsion Burnouts . | . . . . . . Robots Hopped . | . . . . . . Cave-ins Triggered . | . . . . . . Exploration Rate (%) 52 | 4 25 98 92 65 28 Regions Visited 5 Branch Regions 3 Pre-discovered Areas 3 | . . . 1 2 . Known Exits Taken . | . . . . . . Unknown Exits Taken 5 | 1 1 1 1 1 . Scrap Searched 3 | . . 1 . 2 . Spaces Dug . | . . . . . . Terrain Destroyed 83 | . . 13 . 64 6 Melee . | . . . . . . Projectile . | . . . . . . AOE 83 | . . 13 . 64 6 Terrain Rammed . | . . . . . . Walls Destroyed . | . . . . . . Machines Disabled . | . . . . . . Actions | -11 -10 -10 -10 -9 -8 --------- Run | Yrd Mat Min Exi Min Mat Total 3027 | 84 119 830 549 632 813 Wait 343 | 1 . 65 6 58 213 Move 2504 | 64 99 749 540 554 498 Hop . | . . . . . . Pick Up 49 | 9 7 2 1 4 26 Fast Attach 7 | . . 1 . 1 5 Attach 22 | 7 . 1 . . 14 Detach . | . . . . . . Swap 10 | 1 1 2 1 2 3 Drop 28 | . 2 2 1 5 18 Fire 61 | 1 10 8 . 8 34 Melee 2 | . . . . . 2 Ram . | . . . . . . Kick 1 | 1 . . . . . Crush . | . . . . . . Escape Stasis . | . . . . . . Rewire . | . . . . . . Trap . | . . . . . . Miscellaneous . | . . . . . . Route ------- -11/Scrapyard -10/Materials -10/Mines (discovered 3 exits: [*Mat x2] / *Exi) -10/Exiles (discovered 2 exits: [*Min x2]) -9/Mines -8/Materials (discovered 1 exit: [*Fac]) History --------- Turn | Location | Event 12 | -11/Scrapyard | Discovered new exit (range 14) 80 | -11/Scrapyard | Entered Materials 195 | -10/Materials | Discovered new exit (range 15) 238 | -10/Materials | Entered Mines 246 | -10/Mines | Learned Materials terminal intel 282 | -10/Mines | Met a Derelict bent on vengeance 308 | -10/Mines | Build established: Mutant 347 | -10/Mines | Assisted by bots powering up and referring to "LRC-V3" 557 | -10/Mines | Deemed a non-threat by the Exiles lab entrance 557 | -10/Mines | Discovered new exit (range 5) 588 | -10/Mines | Discovered new exit (range 7) 688 | -10/Mines | Discovered new exit (range 8) 696 | -10/Mines | Received a Rocket Launcher from a helpful Derelict 715 | -10/Mines | Escorted by a lone wolf Derelict 1234 | -10/Mines | Entered Exiles 1234 | -10/Exiles | Accompanied by 3 allies 1264 | -10/Exiles | Discovered new exit (range 15) 1279 | -10/Exiles | Met 8R-AWN 1309 | -10/Exiles | Met EX-HEX 1370 | -10/Exiles | Met EX-DEC 1441 | -10/Exiles | Met EX-BIN 1459 | -10/Exiles | Aligned with FarCom system 1460 | -10/Exiles | Given EX-Vault access code 1540 | -10/Exiles | Build established: Scavenger-Mutant 1540 | -10/Exiles | Opened EX-Vault 1551 | -10/Exiles | Found PSU Rigger 1577 | -10/Exiles | Warned to stay clear of 0b10 Research branches 1626 | -10/Exiles | Learned location of Zion (-6) 1693 | -10/Exiles | Visited The Gauntlet 1876 | -10/Exiles | Discovered new exit (range 14) 1891 | -10/Exiles | Left Exiles lab with PSU Rigger 1891 | -10/Exiles | Entered Mines 1891 | -9/Mines | Accompanied by 2 allies 1954 | -9/Mines | Learned location of Storage (-7) 2176 | -9/Mines | Build established: Scavenger-Skirmisher 2218 | -9/Mines | Found a damaged Exp. Sensor Array with a note attached 2221 | -9/Mines | Found Prototype Device 2313 | -9/Mines | Core integrity fell below 50% 2513 | -9/Mines | Discovered new exit (range 8) 2594 | -9/Mines | Assembled infested the area 2599 | -9/Mines | Assisted by a Guerilla fighting off Assembled 2649 | -9/Mines | Entered Materials 2649 | -8/Materials | Accompanied by 2 allies 2649 | -8/Materials | Evolved 4 slots: Propulsion x1, Utility x2, Weapon x1 2650 | -8/Materials | Loaded intel: 12 terminal locations 3228 | -8/Materials | Identified Exp. Sensor Array 4142 | -8/Materials | Discovered new exit (range 15) 4190 | -8/Materials | Core integrity fell below 50% 4204 | -8/Materials | Core integrity fell below 20% 4205 | -8/Materials | Destroyed by S-10 Pest with Light Assault Rifle Last Messages --------------- Knocked back. Critical hit (Destroy). Beam Rifle destroyed. Hvy. Assault Rifle destroyed. Aluminum Leg destroyed. K-01 Serf collects debris. Carbon-fiber Leg destroyed. K-01 Serf collects debris. Hacking Suite destroyed. Knocked back. Greatsword destroyed. Critical hit (Burn: +37). K-01 Serf collects debris. Carbon-fiber Leg destroyed. Greatsword destroyed. Y-45 Defender emerges from the garrison. K-01 Serf collects debris. Critical hit (Burn: +37). Knocked back. Acquired 8 matter. Map ----- +----------------------------------------------------+ | #######+############# ???????????????? | | #???# #??????#????????????????? | | ####??#"" """ #???????????????????????? | | #??#"" """ #???????? ????????????? | | %= #??#"T """ #???????? #???????????? | | " #??#"" #???????? #???????????? | | " #??#"" """ #???????? #???????????? | | " #??# """ #???????? #???????????? | | #??# """ =#???????? #???????????? | | ####??# #???????# #???????????? | | #?????####+#####???????# #???????????? | | #????????# #???????????# #???????????? | | #????????# #???????????# #?? ? ??????? | | #????????# ############# +?? ?????? | | #????????# + # #?? ??????? | | #????????##### "" # #? ???????? | | #????????????# """ # #? ???????? | | ######???????# """ S" + s#? ????????? | | ## =#???????# """ #ss ##s#????????? | | ## #???????# """ # #???##???? | | ## //#???????# # ### !##??? | | !! #???????# % # !#??? | | ## #???????#########;# s !#??? | | ?# #????????????????#; %= !#??? | | ?#####????????????????## %[[ !#??? | | ??????????????????????#; @Y[[[ !##??? | | ??????????????????????## [[[ ####???? | | ??????????????????????#; YgHYk #??????? | | ??????????????????????## *%[ #??????? | | ??????????????????????# "%" #??????? | | ??????????????????????## "G" ?????? | | ???????????????????????# " #????? | | #??????????????????????# [ #???? | | #??????????????????????# #??? | | #??????????????????????# ## ##??? | | #?????????????????????? #? #???? | | #??????????????????????!!==#? ##???? | | #??????????????????????!!==#? #????? | | #?????????????????????######??